fUSD/lending_fUSD_20250623
["ID","MTS","AMOUNT","RATE_DAILY","PERIOD"]
[367186022,1750696240439,-151.0,0.00022899,7]
[367186025,1750696240448,-151.0,0.00022899,7]
[367186028,1750696240457,-151.592024,0.00022899,7]
[367186031,1750696240467,-151.0,0.00022899,7]
[367186034,1750696240476,-151.0,0.00022899,7]
[367186037,1750696240485,-151.0,0.00022899,7]
[367186038,1750696240494,-151.0,0.00022899,7]
[367186039,1750696240503,-151.0,0.00022899,7]
[367186040,1750696240512,-151.0,0.00022899,7]
[367186041,1750696240522,-151.0,0.00022899,7]
[367186042,1750696240531,-151.0,0.00022899,7]
[367186043,1750696240542,-151.0,0.00022899,7]
[367186044,1750696240553,-151.0,0.00022899,7]
[367186045,1750696240563,-151.0,0.00022899,7]
[367186046,1750696240572,-186.007847,0.00022899,7]
[367186047,1750696240582,-186.007847,0.00022899,7]
[367186048,1750696240591,-151.0,0.00022899,7]
[367186049,1750696240601,-151.0,0.00022899,7]
[367186050,1750696240611,-151.0,0.00022899,7]
[367186051,1750696240620,-151.0,0.00022899,7]
[367186052,1750696240630,-151.0,0.00022899,7]
[367186053,1750696240642,-151.0,0.00022899,7]
[367186054,1750696240652,-151.0,0.00022899,7]
[367186055,1750696240662,-151.0,0.00022899,7]
[367186056,1750696240671,-151.0,0.00022899,7]
[367186057,1750696240681,-151.0,0.00022899,7]
[367186058,1750696240691,-151.0,0.00022899,7]
[367186059,1750696240700,-151.0,0.00022899,7]
[367186062,1750696240709,-151.0,0.00022899,7]
[367186065,1750696240719,-151.0,0.00022899,7]
[367186068,1750696240728,-151.0,0.00022899,7]
[367186071,1750696240737,-151.0,0.00022899,7]
[367186074,1750696240746,-178.921956,0.00022899,7]
[367186077,1750696240756,-154.145086,0.00022899,7]
[367186080,1750696240765,-151.0,0.00022899,7]
[367186083,1750696240775,-154.145086,0.00022899,7]
[367186086,1750696240785,-151.0,0.00022899,7]
[367186089,1750696240795,-243.04660989,0.00022899,2]
[367186092,1750696240804,-151.0,0.00022899,7]
[367186095,1750696240814,-151.0,0.00022899,7]
[367186098,1750696240825,-151.0,0.00022899,7]
[367186100,1750696240834,-151.0,0.00022899,7]
[367186103,1750696240844,-196.054502,0.00022899,7]
[367186106,1750696240853,-433.78477,0.00022899,7]
[367186109,1750696240863,-196.054502,0.00022899,7]
[367186112,1750696240872,-433.78477,0.00022899,7]
[367186114,1750696240883,-243.841412,0.000229,7]
[367186117,1750696240895,-151.0,0.000229,7]
[367186120,1750696240905,-1300.0,0.000229,8]
[367186123,1750696240915,-150.0,0.00022916,2]
[367186126,1750696240924,-150.0,0.00022922,2]
[367186129,1750696240934,-151.0,0.00022951,2]
[367186132,1750696240943,-150.0,0.00022977,2]
[367186135,1750696240952,-14592.45,0.0002298,2]
[367186138,1750696240961,-151.0,0.00022988,7]
[367186140,1750696240970,-231.805254,0.00022988,7]
[367186142,1750696240980,-151.0,0.00022988,7]
[367186144,1750696240989,-151.0,0.00022988,7]
[367186146,1750696240999,-151.0,0.00022988,7]
[367186148,1750696241009,-151.0,0.00022988,7]
[367186150,1750696241019,-151.0,0.00022988,7]
[367186152,1750696241028,-151.0,0.00022988,7]
[367186154,1750696241037,-196.054502,0.00022988,7]
[367186156,1750696241046,-433.78477,0.00022988,7]
[367186158,1750696241056,-196.054502,0.00022988,7]
[367186161,1750696241066,-433.78477,0.00022988,7]
[367186164,1750696241075,-291.46,0.00022988,2]
[367186166,1750696241084,-151.0,0.00022989,7]
[367186169,1750696241094,-151.0,0.00022989,7]
[367186172,1750696241103,-154.145086,0.00022989,7]
[367186175,1750696241112,-154.145086,0.00022989,7]
[367186178,1750696241122,-500.0,0.00022995,2]
[367186181,1750696241131,-156.05450521,0.00022995,2]
[367186184,1750696241142,-500.0,0.00022995,2]
[367186187,1750696241151,-490.0,0.00022996,2]
[367186190,1750696241161,-490.0,0.00022996,2]
[367186193,1750696241170,-618.90361022,0.00022996,2]
[367186196,1750696241179,-995.79,0.00022996,2]
[367186199,1750696241188,-490.0,0.00022996,2]
[367186202,1750696241197,-490.0,0.00022996,2]
[367186205,1750696241206,-490.0,0.00022996,2]
[367186208,1750696241216,-490.0,0.00022996,2]
[367186211,1750696241225,-817.21,0.00022996,2]
[367186214,1750696241235,-490.14977903,0.00022996,2]
[367186216,1750696241244,-234.83904191,0.00022996,2]
[367186219,1750696241253,-490.0,0.00022996,2]
[367186222,1750696241263,-490.0,0.00022996,2]
[367186225,1750696241272,-490.0,0.00022996,2]
[367186228,1750696241281,-490.0,0.00022996,2]
[367186231,1750696241290,-1448.36,0.00022996,2]
[367186234,1750696241300,-288.43573064,0.00022996,2]
[367186237,1750696241309,-771.86,0.00022996,2]
[367186240,1750696241318,-490.0,0.00022996,2]
[367186242,1750696241327,-869.53,0.00022996,2]
[367186244,1750696241336,-490.0,0.00022996,2]
[367186246,1750696241345,-490.0,0.00022997,2]
[367186248,1750696241354,-490.0,0.00022997,2]
[367186250,1750696241364,-182.41154209,0.00022997,2]
[367186253,1750696241373,-737.22,0.00022997,2]
[367186256,1750696241383,-490.0,0.00022997,2]
[367186259,1750696241393,-152.975861,0.00022997,7]
[367186262,1750696241403,-490.0,0.00022997,2]
[367186265,1750696241413,-490.0,0.00022997,2]
[367186268,1750696241421,-490.0,0.00022997,2]
[367186271,1750696241431,-490.0,0.00022997,2]
[367186274,1750696241440,-151.0,0.00022997,7]
[367186277,1750696241449,-490.0,0.00022997,2]
[367186280,1750696241457,-490.0,0.00022997,2]
[367186283,1750696241469,-151.0,0.00022997,7]
[367186286,1750696241478,-152.00569,0.00022997,7]
[367186289,1750696241487,-490.0,0.00022997,2]
[367186292,1750696241496,-490.0,0.00022997,2]
[367186295,1750696241505,-151.0,0.00022997,7]
[367186298,1750696241514,-240.119148,0.00022997,7]
[367186301,1750696241522,-151.0,0.00022997,7]
[367186304,1750696241532,-490.0,0.00022997,2]
[367186307,1750696241541,-151.0,0.00022997,7]
[367186310,1750696241551,-151.0,0.00022997,7]
[367186313,1750696241561,-151.0,0.00022997,7]
[367186315,1750696241571,-151.0,0.00022997,7]
[367186318,1750696241582,-490.0,0.00022997,2]
[367186321,1750696241591,-3127.17,0.00022997,2]
[367186324,1750696241601,-820.4,0.00022997,2]
[367186327,1750696241610,-186.007847,0.00022997,7]
[367186330,1750696241619,-4006.79,0.00022997,2]
[367186334,1750696241630,-186.007847,0.00022997,7]
[367186336,1750696241641,-490.0,0.00022997,2]
[367186339,1750696241650,-151.0,0.00022997,7]
[367186342,1750696241659,-1273.041566,0.00022997,2]
[367186345,1750696241668,-490.0,0.00022997,2]
[367186348,1750696241677,-490.0,0.00022997,2]
[367186351,1750696241687,-151.0,0.00022997,7]
[367186353,1750696241697,-151.0,0.00022997,7]
[367186356,1750696241706,-151.0,0.00022997,7]
[367186359,1750696241715,-151.0,0.00022997,7]
[367186362,1750696241724,-151.0,0.00022997,7]
[367186366,1750696241734,-151.0,0.00022997,7]
[367186368,1750696241743,-490.0,0.00022997,2]
[367186371,1750696241752,-151.0,0.00022997,7]
[367186374,1750696241762,-151.0,0.00022997,7]
[367186377,1750696241771,-151.0,0.00022997,7]
[367186380,1750696241781,-169.21527905,0.00022997,2]
[367186383,1750696241790,-490.0,0.00022997,2]
[367186386,1750696241799,-151.0,0.00022997,7]
[367186389,1750696241809,-151.704696,0.00022997,7]
[367186392,1750696241822,-5156.475929,0.00022997,2]
[367186395,1750696241832,-1653.37,0.00022997,2]
[367186398,1750696241841,-587.81718081,0.00022997,2]
[367186401,1750696241851,-251.13053695,0.00022997,2]
[367186404,1750696241861,-522.92,0.00022997,2]
[367186407,1750696241871,-1616.59,0.00022997,2]
[367186410,1750696241880,-2366.988825,0.00022997,2]
[367186413,1750696241892,-1035.93,0.00022997,2]
[367186416,1750696241902,-151.0,0.00022997,7]
[367186419,1750696241911,-151.0,0.00022997,7]
[367186422,1750696241920,-1636.17,0.00022997,2]
[367186425,1750696241929,-151.685901,0.00022997,2]
[367186428,1750696241938,-151.0,0.00022997,7]
[367186431,1750696241947,-151.0,0.00022997,7]
[367186434,1750696241956,-151.219152,0.00022997,2]
[367186437,1750696241966,-493.38606796,0.00022997,2]
[367186440,1750696241975,-943.86,0.00022997,2]
[367186443,1750696241985,-1776.4,0.00022997,2]
[367186445,1750696241994,-1222.51,0.00022997,2]
[367186447,1750696242004,-490.0,0.00022997,2]
[367186449,1750696242013,-490.0,0.00022997,2]
[367186451,1750696242022,-151.0,0.00022997,7]
[367186453,1750696242031,-490.0,0.00022997,2]
[367186456,1750696242040,-340.680011,0.00022997,2]
[367186459,1750696242050,-13370.77,0.00022997,2]
[367186462,1750696242059,-490.0,0.00022997,2]
[367186465,1750696242068,-289.657951,0.00022997,7]
[367186468,1750696242078,-151.0,0.00022997,7]
[367186471,1750696242087,-151.0,0.00022997,7]
[367186474,1750696242096,-151.0,0.00022997,7]
[367186477,1750696242109,-151.0,0.00022997,7]
[367186480,1750696242118,-490.0,0.00022997,2]
[367186483,1750696242127,-286.148966,0.00022997,7]
[367186486,1750696242139,-1805.54,0.00022997,2]
[367186490,1750696242149,-1795.01,0.00022997,2]
[367186493,1750696242158,-2223.98,0.00022997,2]
[367186496,1750696242167,-1584.23,0.00022997,2]
[367186499,1750696242176,-2926.62,0.00022997,2]
[367186502,1750696242187,-530.0,0.00022997,2]
[367186505,1750696242196,-154.145086,0.00022997,7]
[367186508,1750696242206,-154.145086,0.00022997,7]
[367186511,1750696242215,-1683.75,0.00022997,2]
[367186514,1750696242224,-4228.14,0.00022997,2]
[367186517,1750696242234,-151.0,0.00022997,7]
[367186520,1750696242243,-771.67,0.00022997,2]
[367186523,1750696242253,-151.0,0.00022997,7]
[367186526,1750696242263,-151.0,0.00022997,7]
[367186529,1750696242273,-154.145086,0.00022997,7]
[367186532,1750696242282,-151.0,0.00022997,7]
[367186535,1750696242292,-154.145086,0.00022997,7]
[367186538,1750696242301,-1427.36,0.00022997,2]
[367186541,1750696242310,-151.0,0.00022997,7]
[367186544,1750696242320,-254.773322,0.00022997,7]
[367186547,1750696242329,-1599.17,0.00022997,2]
[367186550,1750696242339,-2787.59,0.00022997,2]
[367186553,1750696242348,-1679.7,0.00022997,2]
[367186556,1750696242358,-1689.03,0.00022997,2]
[367186559,1750696242368,-669.95,0.00022997,2]
[367186562,1750696242377,-1721.01,0.00022997,2]
[367186565,1750696242389,-1032.84,0.00022997,2]
[367186568,1750696242398,-1722.99,0.00022997,2]
[367186571,1750696242408,-490.0,0.00022997,2]
[367186574,1750696242417,-490.0,0.00022997,2]
[367186577,1750696242427,-1580.15,0.00022997,2]
[367186580,1750696242436,-1720.15,0.00022997,2]
[367186583,1750696242446,-1101.93,0.00022997,2]
[367186586,1750696242455,-490.0,0.00022997,2]
[367186589,1750696242465,-11788.78,0.00022997,2]
[367186592,1750696242475,-490.0,0.00022997,2]
[367186595,1750696242484,-2122.39,0.00022997,2]
[367186598,1750696242494,-151.0,0.00022997,7]
[367186600,1750696242504,-177.16321463,0.00022997,7]
[367186603,1750696242513,-490.0,0.00022997,2]
[367186606,1750696242523,-151.0,0.00022997,7]
[367186609,1750696242531,-151.0,0.00022997,7]
[367186612,1750696242541,-1677.56,0.00022997,2]
[367186615,1750696242551,-490.0,0.00022997,2]
[367186618,1750696242561,-151.0,0.00022997,7]
[367186622,1750696242570,-770.72,0.00022997,2]
[367186625,1750696242579,-151.0,0.00022997,7]
[367186628,1750696242589,-151.0,0.00022997,7]
[367186630,1750696242598,-151.0,0.00022997,7]
[367186633,1750696242607,-151.0,0.00022997,7]
[367186636,1750696242617,-1452.88,0.00022997,2]
[367186638,1750696242626,-490.0,0.00022997,2]
[367186640,1750696242636,-577.62,0.00022997,2]
[367186643,1750696242647,-1844.29,0.00022997,2]
[367186646,1750696242657,-490.0,0.00022997,2]
[367186648,1750696242666,-151.0,0.00022997,7]
[367186651,1750696242675,-151.0,0.00022997,7]
[367186655,1750696242685,-151.0,0.00022997,7]
[367186658,1750696242694,-151.0,0.00022997,7]
[367186661,1750696242704,-152.932254,0.00022997,7]
[367186664,1750696242713,-1649.49,0.00022997,2]
[367186667,1750696242723,-5629.07,0.00022997,2]
[367186670,1750696242732,-8269.14,0.00022997,2]
[367186674,1750696242743,-1700.42,0.00022997,2]
[367186677,1750696242752,-1960.47,0.00022997,2]
[367186680,1750696242762,-2074.31,0.00022997,2]
[367186683,1750696242772,-1278.48,0.00022997,2]
[367186686,1750696242781,-151.0,0.00022997,7]
[367186689,1750696242790,-151.0,0.00022997,7]
[367186692,1750696242800,-151.0,0.00022997,7]
[367186695,1750696242812,-151.0,0.00022997,7]
[367186698,1750696242823,-151.0,0.00022997,7]
[367186701,1750696242832,-490.0,0.00022997,2]
[367186704,1750696242841,-151.0,0.00022997,7]
[367186707,1750696242852,-196.054502,0.00022997,7]
[367186710,1750696242861,-196.054502,0.00022997,7]
[367186713,1750696242871,-196.054502,0.00022997,7]
[367186716,1750696242880,-196.054502,0.00022997,7]
[367186718,1750696242892,-433.78477,0.00022997,7]
[367186722,1750696242903,-433.78477,0.00022997,7]
[367186725,1750696242913,-914.55,0.00022997,2]
[367186728,1750696242922,-196.054502,0.00022997,7]
[367186731,1750696242932,-196.054502,0.00022997,7]
[367186734,1750696242942,-196.054502,0.00022997,7]
[367186737,1750696242952,-196.054502,0.00022997,7]
[367186739,1750696242962,-1093.48,0.00022997,2]
[367186742,1750696242973,-1093.48,0.00022997,2]
[367186745,1750696242982,-433.78477,0.00022997,7]
[367186748,1750696242992,-433.78477,0.00022997,7]
[367186751,1750696243003,-433.78477,0.00022997,7]
[367186754,1750696243012,-433.78477,0.00022997,7]
[367186757,1750696243022,-433.78477,0.00022997,7]
[367186761,1750696243032,-2233.27,0.00022997,2]
[367186764,1750696243042,-433.78477,0.00022997,7]
[367186767,1750696243051,-433.78477,0.00022997,7]
[367186770,1750696243061,-433.78477,0.00022997,7]
[367186773,1750696243070,-433.78477,0.00022997,7]
[367186776,1750696243079,-433.78477,0.00022997,7]
[367186779,1750696243089,-433.78477,0.00022997,7]
[367186782,1750696243098,-433.784761,0.00022997,7]
[367186784,1750696243108,-490.0,0.00022998,2]
[367186787,1750696243118,-490.0,0.00022998,2]
[367186790,1750696243128,-691.4,0.00022998,2]
[367186793,1750696243138,-490.0,0.00022998,2]
[367186796,1750696243149,-490.0,0.00022998,2]
[367186799,1750696243159,-998.19,0.00022998,2]
[367186802,1750696243168,-490.0,0.00022998,2]
[367186805,1750696243178,-490.0,0.00022998,2]
[367186808,1750696243188,-490.0,0.00022998,2]
[367186810,1750696243198,-490.0,0.00022998,2]
[367186813,1750696243208,-490.0,0.00022998,2]
[367186815,1750696243218,-490.0,0.00022998,2]
[367186817,1750696243228,-490.0,0.00022998,2]
[367186819,1750696243238,-490.0,0.00022998,2]
[367186822,1750696243248,-854.09,0.00022998,2]
[367186825,1750696243258,-151.0,0.00022998,7]
[367186828,1750696243267,-490.0,0.00022998,2]
[367186831,1750696243276,-500.0,0.00022998,2]
[367186834,1750696243286,-151.0,0.00022998,7]
[367186837,1750696243295,-490.0,0.00022998,2]
[367186840,1750696243304,-490.0,0.00022998,2]
[367186843,1750696243314,-1313.52,0.00022998,2]
[367186846,1750696243323,-490.0,0.00022998,2]
[367186848,1750696243332,-490.0,0.00022998,2]
[367186851,1750696243342,-612.64,0.00022998,2]
[367186854,1750696243351,-829.84,0.00022998,2]
[367186858,1750696243361,-490.0,0.00022998,2]
[367186861,1750696243370,-490.0,0.00022998,2]
[367186864,1750696243380,-490.0,0.00022998,2]
[367186867,1750696243391,-490.0,0.00022998,2]
[367186870,1750696243400,-490.0,0.00022998,2]
[367186873,1750696243409,-1670.41,0.00022998,2]
[367186876,1750696243419,-490.0,0.00022998,2]
[367186879,1750696243429,-490.0,0.00022998,2]
[367186882,1750696243440,-490.0,0.00022998,2]
[367186885,1750696243449,-490.0,0.00022998,2]
[367186888,1750696243459,-490.0,0.00022998,2]
[367186891,1750696243469,-490.0,0.00022998,2]
[367186894,1750696243479,-490.0,0.00022998,2]
[367186896,1750696243488,-462.36546582,0.00022998,2]
[367186898,1750696243498,-490.0,0.00022998,2]
[367186901,1750696243509,-214.99382493,0.00022998,2]
[367186903,1750696243519,-490.0,0.00022998,2]
[367186906,1750696243529,-151.0,0.00022998,7]
[367186908,1750696243538,-582.52,0.00022998,2]
[367186911,1750696243547,-161.85903763,0.00022998,2]
[367186913,1750696243557,-490.0,0.00022998,2]
[367186915,1750696243567,-803.97,0.00022998,2]
[367186918,1750696243577,-589.88,0.00022998,2]
[367186920,1750696243586,-490.0,0.00022998,2]
[367186923,1750696243595,-496.39582431,0.00022998,2]
[367186925,1750696243605,-1377.34,0.00022998,2]
[367186928,1750696243615,-247.36177419,0.00022998,2]
[367186930,1750696243626,-490.0,0.00022998,2]
[367186933,1750696243635,-588.13,0.00022998,2]
[367186935,1750696243645,-838.56,0.00022998,2]
[367186938,1750696243655,-394.17832197,0.00022998,2]
[367186940,1750696243665,-1198.99,0.00022998,2]
[367186943,1750696243675,-490.0,0.00022998,2]
[367186945,1750696243685,-799.28,0.00022998,2]
[367186948,1750696243694,-273.25989477,0.00022998,2]
[367186950,1750696243703,-490.0,0.00022998,2]
[367186953,1750696243714,-490.0,0.00022998,2]
[367186956,1750696243724,-1312.42,0.00022998,2]
[367186958,1750696243733,-490.0,0.00022998,2]
[367186961,1750696243743,-955.04,0.00022998,2]
[367186963,1750696243753,-490.0,0.00022998,2]
[367186966,1750696243763,-490.0,0.00022998,2]
[367186968,1750696243773,-1231.64,0.00022998,2]
[367186971,1750696243783,-490.0,0.00022998,2]
[367186973,1750696243793,-490.0,0.00022998,2]
[367186976,1750696243804,-490.0,0.00022998,2]
[367186979,1750696243817,-1608.99,0.00022998,2]
[367186982,1750696243831,-192.95613348,0.00022998,2]
[367186985,1750696243841,-490.0,0.00022998,2]
[367186987,1750696243852,-490.76,0.00022998,2]
[367186989,1750696243862,-817.02,0.00022998,2]
[367186992,1750696243872,-490.0,0.00022998,2]
[367186995,1750696243881,-210.0,0.00022998,2]
[367186997,1750696243892,-490.0,0.00022998,2]
[367187001,1750696243904,-184.005829,0.00022998,7]
[367187002,1750696243914,-893.45,0.00022998,2]
[367187006,1750696243925,-184.005829,0.00022998,7]
[367187009,1750696243934,-528.98,0.00022998,2]
[367187011,1750696243944,-490.0,0.00022998,2]
[367187042,1750696244089,-882.525702,0.00022998,7]
[367187049,1750696244167,-882.525702,0.00022998,7]
[367187051,1750696244178,-882.525702,0.00022998,7]
[367187053,1750696244188,-882.525702,0.00022998,7]
[367187055,1750696244199,-490.0,0.00022998,2]
[367187057,1750696244208,-882.525702,0.00022998,7]
[367187059,1750696244218,-1548.13,0.00022998,2]
[367187061,1750696244228,-882.525702,0.00022998,7]
[367187064,1750696244238,-882.525702,0.00022998,7]
[367187066,1750696244248,-882.525702,0.00022998,7]
[367187069,1750696244258,-1145.9,0.00022998,2]
[367187072,1750696244267,-490.0,0.00022998,2]
[367187075,1750696244277,-976.17,0.00022998,2]
[367187077,1750696244286,-651.05,0.00022998,2]
[367187079,1750696244295,-490.0,0.00022998,2]
[367187081,1750696244305,-490.0,0.00022998,2]
[367187083,1750696244315,-262.46304438,0.00022998,2]
[367187085,1750696244324,-151.0,0.00022998,7]
[367187087,1750696244333,-151.0,0.00022998,7]
[367187089,1750696244343,-151.0,0.00022998,7]
[367187091,1750696244352,-151.0,0.00022998,7]
[367187093,1750696244361,-250.285353,0.00022998,7]
[367187095,1750696244371,-693.21,0.00022998,2]
[367187097,1750696244381,-160.0,0.00022998,2]
[367187099,1750696244391,-1116.1,0.00022998,2]
[367187101,1750696244401,-1087.23,0.00022998,2]
[367187103,1750696244410,-490.0,0.00022998,2]
[367187105,1750696244421,-490.0,0.00022998,2]
[367187106,1750696244430,-490.0,0.00022998,2]
[367187108,1750696244440,-1036.63,0.00022998,2]
[367187110,1750696244449,-482.24888601,0.00022998,2]
[367187113,1750696244459,-893.81,0.00022998,2]
[367187114,1750696244469,-506.43015456,0.00022998,2]
[367187116,1750696244479,-1086.46,0.00022998,2]
[367187119,1750696244488,-491.51319247,0.00022998,2]
[367187121,1750696244498,-570.53,0.00022998,2]
[367187123,1750696244507,-414.33757556,0.00022998,2]
[367187124,1750696244517,-490.0,0.00022998,2]
[367187126,1750696244527,-490.0,0.00022998,2]
[367187128,1750696244537,-2634.25,0.00022998,2]
[367187130,1750696244547,-490.0,0.00022998,2]
[367187132,1750696244557,-490.0,0.00022998,2]
[367187134,1750696244566,-151.0,0.00022998,7]
[367187136,1750696244576,-151.0,0.00022998,7]
[367187138,1750696244585,-151.0,0.00022998,7]
[367187140,1750696244594,-151.0,0.00022998,7]
[367187142,1750696244603,-151.0,0.00022998,7]
[367187144,1750696244613,-151.0,0.00022998,7]
[367187146,1750696244622,-151.0,0.00022998,7]
[367187148,1750696244631,-151.0,0.00022998,7]
[367187150,1750696244641,-490.0,0.00022998,2]
[367187152,1750696244651,-151.0,0.00022998,7]
[367187154,1750696244660,-151.0,0.00022998,7]
[367187156,1750696244670,-630.96,0.00022998,2]
[367187158,1750696244680,-490.0,0.00022998,2]
[367187160,1750696244690,-151.0,0.00022998,7]
[367187162,1750696244699,-151.0,0.00022998,7]
[367187164,1750696244708,-151.0,0.00022998,7]
[367187166,1750696244718,-151.0,0.00022998,7]
[367187168,1750696244727,-151.0,0.00022998,7]
[367187170,1750696244737,-151.0,0.00022998,7]
[367187172,1750696244747,-151.0,0.00022998,7]
[367187174,1750696244756,-241.952579,0.00022998,7]
[367187175,1750696244766,-490.0,0.00022998,2]
[367187177,1750696244775,-490.0,0.00022998,2]
[367187179,1750696244785,-490.0,0.00022998,2]
[367187181,1750696244794,-490.0,0.00022998,2]
[367187183,1750696244804,-638.89,0.00022998,2]
[367187185,1750696244818,-490.0,0.00022998,2]
[367187187,1750696244828,-884.07,0.00022998,2]
[367187189,1750696244837,-490.0,0.00022998,2]
[367187191,1750696244846,-283.300007,0.00022998,7]
[367187193,1750696244857,-181.51689646,0.00022998,2]
[367187195,1750696244867,-490.0,0.00022998,2]
[367187197,1750696244877,-466.367884,0.00022998,7]
[367187199,1750696244887,-490.0,0.00022998,2]
[367187201,1750696244899,-466.367884,0.00022998,7]
[367187203,1750696244908,-466.367884,0.00022998,7]
[367187205,1750696244918,-466.367884,0.00022998,7]
[367187207,1750696244927,-466.367884,0.00022998,7]
[367187209,1750696244937,-466.367884,0.00022998,7]
[367187211,1750696244947,-466.367879,0.00022998,7]
[367187213,1750696244956,-490.0,0.00022998,2]
[367187215,1750696244966,-490.0,0.00022998,2]
[367187217,1750696244976,-630.61,0.00022998,2]
[367187219,1750696244986,-490.0,0.00022998,2]
[367187221,1750696244996,-154.897998,0.00022998,7]
[367187223,1750696245005,-1880.77,0.00022998,2]
[367187225,1750696245015,-490.40472868,0.00022998,2]
[367187227,1750696245025,-490.0,0.00022998,2]
[367187229,1750696245035,-1562.12,0.00022998,2]
[367187231,1750696245044,-1550.31,0.00022998,2]
[367187233,1750696245054,-407.75657292,0.00022998,2]
[367187234,1750696245064,-490.0,0.00022998,2]
[367187237,1750696245074,-1269.66,0.00022998,2]
[367187239,1750696245084,-490.0,0.00022998,2]
[367187240,1750696245094,-490.0,0.00022998,2]
[367187242,1750696245104,-490.91062201,0.00022998,2]
[367187244,1750696245114,-490.0,0.00022998,2]
[367187246,1750696245123,-621.46,0.00022998,2]
[367187249,1750696245134,-721.18,0.00022998,2]
[367187250,1750696245144,-490.0,0.00022998,2]
[367187252,1750696245154,-490.0,0.00022998,2]
[367187254,1750696245164,-490.0,0.00022998,2]
[367187256,1750696245174,-562.99,0.00022998,2]
[367187258,1750696245184,-490.0,0.00022998,2]
[367187260,1750696245194,-490.0,0.00022998,2]
[367187262,1750696245204,-370.60001301,0.00022998,2]
[367187264,1750696245213,-490.0,0.00022998,2]
[367187266,1750696245223,-490.0,0.00022998,2]
[367187268,1750696245234,-588.55,0.00022998,2]
[367187270,1750696245243,-494.16564808,0.00022998,2]
[367187272,1750696245252,-151.0,0.00022998,7]
[367187274,1750696245262,-151.0,0.00022998,7]
[367187276,1750696245271,-151.0,0.00022998,7]
[367187278,1750696245282,-490.0,0.00022998,2]
[367187280,1750696245292,-151.0,0.00022998,7]
[367187282,1750696245302,-151.0,0.00022998,7]
[367187284,1750696245312,-151.0,0.00022998,7]
[367187286,1750696245322,-151.0,0.00022998,7]
[367187288,1750696245332,-151.0,0.00022998,7]
[367187290,1750696245342,-151.0,0.00022998,7]
[367187292,1750696245352,-490.0,0.00022998,2]
[367187294,1750696245362,-1634.79,0.00022998,2]
[367187296,1750696245372,-1623.62,0.00022998,2]
[367187298,1750696245383,-151.0,0.00022998,7]
[367187300,1750696245395,-490.0,0.00022998,2]
[367187302,1750696245404,-151.0,0.00022998,7]
[367187305,1750696245413,-151.0,0.00022998,7]
[367187307,1750696245423,-151.0,0.00022998,7]
[367187309,1750696245433,-172.044972,0.00022998,7]
[367187311,1750696245442,-151.0,0.00022998,7]
[367187312,1750696245452,-222.731901,0.00022998,7]
[367187314,1750696245462,-922.43,0.00022998,2]
[367187318,1750696245471,-1907.21,0.00022998,2]
[367187320,1750696245482,-185.49828058,0.00022998,2]
[367187323,1750696245492,-490.0,0.00022998,2]